{"text_format":"1","workbook":"xlsx","n_sheets":2,"sheets":["Наименования","Словарь"],"not_rendered":{"charts":0,"images":0,"macros":1,"external_links":0,"defined_names":0,"comments":0,"pivot_tables":0},"unopened":[],"bounds":{"document_bytes":16777216,"sheet_cells":100000,"rows_first":2000,"rows_last":500,"rows_between":2000,"halvings":0,"cell_chars":16384,"cell_head_chars":4096},"cells_cut":0,"cells_raw":0,"read":"whole","date_system":"1900"}

{"sheet":"Наименования","index":0,"n_rows":41,"n_cols":3,"rows_kept":41,"cut":false,"hidden":false,"merged":[]}
["Имеется","Должно получится","Получается"]
["БАМПЕР ЗАДНИЙ SDN -10","Бампер задний",{"$f":"AllVokSub(Таблица2[[#This Row],[Имеется]])","v":" БАМПЕР ЗАДНИЙ "}]
["БАМПЕР ЗАДНИЙ SDN грунт. -10","Бампер задний",{"$f":"AllVokSub(Таблица2[[#This Row],[Имеется]])","v":" БАМПЕР ЗАДНИЙ "}]
["БАМПЕР ПЕРЕДНИЙ SDN -10","Бампер передний",{"$f":"AllVokSub(Таблица2[[#This Row],[Имеется]])","v":" БАМПЕР ПЕРЕДНИЙ "}]
["БАМПЕР ПЕРЕДНИЙ SDN черный с отв. под птф. -10","Бампер передний",{"$f":"AllVokSub(Таблица2[[#This Row],[Имеется]])","v":" БАМПЕР ПЕРЕДНИЙ "}]
["ЗЕРКАЛО ПРАВОЕ мех. SDN ","Зеркало правое",{"$f":"AllVokSub(Таблица2[[#This Row],[Имеется]])","v":" ЗЕРКАЛО ПРАВОЕ "}]
["КАПОТ SDN -10","Капот",{"$f":"AllVokSub(Таблица2[[#This Row],[Имеется]])","v":" КАПОТ "}]
["КРЫЛО ПЕРЕДНЕЕ ЛЕВОЕ с отв.SDN -08","Крыло левое",{"$f":"AllVokSub(Таблица2[[#This Row],[Имеется]])","v":" КРЫЛО ЛЕВОЕ "}]
["КРЫЛО ПЕРЕДНЕЕ ПРАВОЕ с отв.SDN -08","Крыло правое",{"$f":"AllVokSub(Таблица2[[#This Row],[Имеется]])","v":" КРЫЛО ПРАВОЕ "}]
["КРЫЛО ПЕРЕДНЕЕ ПРАВОЕ с отв.SDN -08--Дефект--","Крыло правое",{"$f":"AllVokSub(Таблица2[[#This Row],[Имеется]])","v":" КРЫЛО ПРАВОЕ "}]
["МОЛДИНГ КАПОТА хром/черный SDN -10","Молдинг капота",{"$f":"AllVokSub(Таблица2[[#This Row],[Имеется]])","v":" МОЛДИНГ КАПОТА "}]
["ПАНЕЛЬ ПЕРЕДНЯЯ SDN","Передняя панель",{"$f":"AllVokSub(Таблица2[[#This Row],[Имеется]])","v":" ПАНЕЛЬ ПЕРЕДНЯЯ "}]
["ПАНЕЛЬ ПЕРЕДНЯЯ SDN ","Передняя панель",{"$f":"AllVokSub(Таблица2[[#This Row],[Имеется]])","v":" ПАНЕЛЬ ПЕРЕДНЯЯ "}]
["РАДИАТОР 480x413 1.2/1.4 М +/-AC ","Радиатор",{"$f":"AllVokSub(Таблица2[[#This Row],[Имеется]])","v":" РАДИАТОР "}]
["РАДИАТОР 480x413 1.2/1.4-16v A/M+/-A/C ","Радиатор",{"$f":"AllVokSub(Таблица2[[#This Row],[Имеется]])","v":" РАДИАТОР "}]
["РАДИАТОР 600x413 1,2/1.4 A/M +A/C ","Радиатор",{"$f":"AllVokSub(Таблица2[[#This Row],[Имеется]])","v":" РАДИАТОР "}]
["РАДИАТОР 600x415 1.4-16v M+A/C","Радиатор основной",{"$f":"AllVokSub(Таблица2[[#This Row],[Имеется]])","v":" РАДИАТОР ОСНОВНОЙ "}]
["РАДИАТОР КОНДИЦИОНЕРА с бочком 586x415","Радиатор кондиционера",{"$f":"AllVokSub(Таблица2[[#This Row],[Имеется]])","v":" РАДИАТОР КОНДИЦИОНЕРА "}]
["РАМКА ПРОТИВОТУМАННОЙ ФАРЫ ЛЕВАЯ SDN 06-10","Рамка ПТФ",{"$f":"AllVokSub(Таблица2[[#This Row],[Имеется]])","v":" РАМКА  ПТФ "}]
["РАМКА ПРОТИВОТУМАННОЙ ФАРЫ ПРАВАЯ SDN 06-10","Рамка ПТФ",{"$f":"AllVokSub(Таблица2[[#This Row],[Имеется]])","v":" РАМКА  ПТФ "}]
["РЕШЕТКА хром./чёрная SDN -10","Решетка радиатора",{"$f":"AllVokSub(Таблица2[[#This Row],[Имеется]])","v":" РЕШЕТКА РАДИАТОРА "}]
["РЕШЕТКА хром./чёрная SDN -10","Решетка радиатора",{"$f":"AllVokSub(Таблица2[[#This Row],[Имеется]])","v":" РЕШЕТКА РАДИАТОРА "}]
["УСИЛИТЕЛЬ БАМПЕРА ПЕРЕДНЕГО SDN","Усилитель бампера",{"$f":"AllVokSub(Таблица2[[#This Row],[Имеется]])","v":" УСИЛИТЕЛЬ БАМПЕРА "}]
["УСИЛИТЕЛЬ БАМПЕРА ПЕРЕДНЕГО SDN","Усилитель бампера",{"$f":"AllVokSub(Таблица2[[#This Row],[Имеется]])","v":" УСИЛИТЕЛЬ БАМПЕРА "}]
["УСИЛИТЕЛЬ ЗАДНЕГО БАМПЕРА пластик SDN ","Усилитель бампера",{"$f":"AllVokSub(Таблица2[[#This Row],[Имеется]])","v":" УСИЛИТЕЛЬ БАМПЕРА "}]
["ФАРА ЛЕВАЯ электр.с коррект.SDN 06-10","Фара левая",{"$f":"AllVokSub(Таблица2[[#This Row],[Имеется]])","v":" ФАРА ЛЕВАЯ "}]
["ФАРА ЛЕВАЯ ЭЛЕКТРИКА С МОТОРОМ","Фара левая",{"$f":"AllVokSub(Таблица2[[#This Row],[Имеется]])","v":" ФАРА ЛЕВАЯ "}]
["ФАРА ПРАВАЯ электр.с коррект.SDN 06-10","Фара правая",{"$f":"AllVokSub(Таблица2[[#This Row],[Имеется]])","v":" ФАРА ПРАВАЯ "}]
["ФАРА ПРАВАЯ ЭЛЕКТРИКА С МОТОРОМ*","Фара правая",{"$f":"AllVokSub(Таблица2[[#This Row],[Имеется]])","v":" ФАРА ПРАВАЯ "}]
["ФАРА ПРОТИВОТУМАННАЯ комплект Л+ПР","Комплект ПТФ",{"$f":"AllVokSub(Таблица2[[#This Row],[Имеется]])","v":" комплект ПТФ "}]
["ФАРА ПРОТИВОТУМАННАЯ ЛЕВАЯ прозрачная","Противотуманка левая",{"$f":"AllVokSub(Таблица2[[#This Row],[Имеется]])","v":" Противотуманка ЛЕВАЯ "}]
["ФАРА ПРОТИВОТУМАННАЯ ЛЕВАЯ рефленая*","Противотуманка левая",{"$f":"AllVokSub(Таблица2[[#This Row],[Имеется]])","v":" Противотуманка ЛЕВАЯ "}]
["ФАРА ПРОТИВОТУМАННАЯ ЛЕВАЯ рефленая*","Противотуманка левая",{"$f":"AllVokSub(Таблица2[[#This Row],[Имеется]])","v":" Противотуманка ЛЕВАЯ "}]
["ФАРА ПРОТИВОТУМАННАЯ ПРАВАЯ прозрачная","Противотуманка правая",{"$f":"AllVokSub(Таблица2[[#This Row],[Имеется]])","v":" Противотуманка ПРАВАЯ "}]
["ФАРА ПРОТИВОТУМАННАЯ ПРАВАЯ рефленая*","Противотуманка правая",{"$f":"AllVokSub(Таблица2[[#This Row],[Имеется]])","v":" Противотуманка ПРАВАЯ "}]
["ФАРА ПРОТИВОТУМАННАЯ ПРАВАЯ рефленая*","Противотуманка правая",{"$f":"AllVokSub(Таблица2[[#This Row],[Имеется]])","v":" Противотуманка ПРАВАЯ "}]
["ФАРЫ ПРОТИВОТУМАННЫЕ Л+ПР с проводом и кнопкой_*","Комплект ПТФ",{"$f":"AllVokSub(Таблица2[[#This Row],[Имеется]])","v":" Комплект ПТФ "}]
["ФОНАРЬ ЗАДНИЙ ЛЕВЫЙ SDN","Фонарь левый",{"$f":"AllVokSub(Таблица2[[#This Row],[Имеется]])","v":" ФОНАРЬ ЛЕВЫЙ "}]
["ФОНАРЬ ЗАДНИЙ ЛЕВЫЙ SDN","Фонарь левый",{"$f":"AllVokSub(Таблица2[[#This Row],[Имеется]])","v":" ФОНАРЬ ЛЕВЫЙ "}]
["ФОНАРЬ ЗАДНИЙ ПРАВЫЙ SDN","Фонарь правый",{"$f":"AllVokSub(Таблица2[[#This Row],[Имеется]])","v":" ФОНАРЬ ПРАВЫЙ "}]
["ФОНАРЬ ЗАДНИЙ ПРАВЫЙ SDN","Фонарь правый",{"$f":"AllVokSub(Таблица2[[#This Row],[Имеется]])","v":" ФОНАРЬ ПРАВЫЙ "}]

{"sheet":"Словарь","index":1,"n_rows":35,"n_cols":2,"rows_kept":35,"cut":false,"hidden":false,"merged":[]}
["Наменование","Перевод"]
["ФАРА ПРОТИВОТУМАННАЯ комплект","Комплект_ПТФ"]
["ФАРА ПРОТИВОТУМАННАЯ","Противотуманка"]
["бампер","бампер"]
["задний","задний"]
["передний","передний"]
["зеркало","зеркало"]
["капот","капот"]
["правое","правое"]
["крыло","крыло"]
["левое","левое"]
["молдинг","молдинг"]
["капота","капота"]
["панель","панель"]
["передняя","передняя"]
["радиатор","радиатор"]
["ПРОТИВОТУМАННОЙ ФАРЫ","_ПТФ"]
["рамка","рамка"]
["левая","левая"]
["кондиционера","кондиционера"]
["РЕШЕТКА","РЕШЕТКА_РАДИАТОРА"]
["фара","фара"]
["РАДИАТОР 600x415 1.4-16v M+A/C","РАДИАТОР_ОСНОВНОЙ"]
["основной","основной"]
["фонарь","фонарь"]
["левый","левый"]
["правый","правый"]
["панель передняя","передняя_панель"]
["правая","правая"]
["ПТФ ЛЕВАЯ","ПТФ_"]
["ПТФ ПРАВАЯ","ПТФ_"]
["усилитель","усилитель"]
["бампера","бампера"]
["ФАРЫ","Комплект_ПТФ"]
["ФОНАРЬ ЗАДНИЙ","ФОНАРЬ"]